Cogmind - Beta 15 @@@ ROGUE MODE // 2025.06.13 @ 16:51:47 Player: Chair Result: Destroyed by G-47 Trooper with Particle Gun Performance ------------- Evolutions (1) 500 Regions Visited (2) 400 Robots Destroyed (3) 15 Value Destroyed (69) 69 Prototype IDs (0) 0 Alien Tech Used (0) 0 Bonus (200) 200 TOTAL SCORE: 1184 Bonus ------- Pacifist 200 Cogmind --------- Core Integrity 0/400 Matter 280/300 Energy 99/100 System Corruption 0% Temperature Cool (9) Movement Core (50) Location -9/Materials Parts ------- > --- POWER (1) -------- (None) > --- PROPULSION (3) --- (None) > --- UTILITY (3) ------ Signal Interpreter Signal Interpreter > --- WEAPON (2) ------- Hammer > --- INVENTORY (5) ---- Sensor Array ECM Suite Peak State ------------ > --- POWER ------------ (None) > --- PROPULSION ------- (None) > --- UTILITY ---------- Structural Scanner ECM Suite > --- WEAPON ----------- EM Pulse Gun > --- INVENTORY -------- (None) [Rating: 3] Favorites ----------- Power None Propulsion None Utility Signal Interpreter Device Structural Scanner Processor Signal Interpreter Weapon Hammer Energy Gun EM Pulse Gun Impact Weapon Hammer Build | -11 -10 -9 ------- Run | Yrd Mat Mat Slots Evolved 2 | . . 2 Power . | . . . Propulsion 1 | . . 1 Utility 1 | . . 1 Weapon . | . . . Parts Attached 6 | 1 2 3 Power . | . . . Engine . | . . . Core . | . . . Reactor . | . . . Propulsion . | . . . Treads . | . . . Leg . | . . . Wheel . | . . . Hover . | . . . Flight . | . . . Utility 4 | . 2 2 Device 2 | . 2 . Storage . | . . . Processor 2 | . . 2 Hackware . | . . . Protection . | . . . Artifact . | . . . Weapon 2 | 1 . 1 Energy Gun 1 | 1 . . Energy Cannon . | . . . Ballistic Gun . | . . . Ballistic Cannon . | . . . Launcher . | . . . Special Weapon . | . . . Impact Weapon 1 | . . 1 Slashing Weapon . | . . . Piercing Weapon . | . . . Special Melee Weapon . | . . . Unidentified Prototypes . | . . . Parts Lost 2 | . . 2 Power . | . . . Propulsion . | . . . Utility 1 | . . 1 Weapon 1 | . . 1 Highest Loss Streak 1 | . . 1 To Critical Strikes . | . . . Average Backups 1 | . . 1 Power . | . . . Propulsion . | . . . Utility 1 | . . 1 Weapon . | . . . Tool/Special . | . . . Unused Backups 1 | . . 1 Power . | . . . Propulsion . | . . . Utility 1 | . . 1 Weapon . | . . . Tool/Special . | . . . Average Slot Usage (%) 25 | . 21 26 Device 5 | . 7 4 Processor 9 | . . 11 Energy Gun 3 | . 14 1 Impact Weapon 7 | . . 8 Peak Build Rating 3 | 1 3 3 Average Rating 2 | . 1 2 On Entrance 1 | . 1 2 Naked Turns . | . . . Heaviest Build 3 | 2 3 3 Greatest Support 3 | 3 3 3 Greatest Overweight (x) . | . . . Average Overweight (x) . | . . . Largest Inventory Capacity 5 | 5 5 5 Average Capacity 5 | 5 5 5 Most Carried 3 | . 1 3 Average Carried 1 | . . 1 Final Capacity 5 | 5 5 5 Final Carried 2 | . 1 2 Class Distribution -------------------- 100% | Mutant Dominant Class ---------------- Mutant | -9/Materials Resources | -11 -10 -9 ----------- Run | Yrd Mat Mat Matter Collected 216 | 59 . 157 Remotely . | . . . Salvage Created 157 | . . 157 Parts 6 | . . 6 Haulers Intercepted 2 | . . 2 Recyclers Shooed . | . . . Parts Field Recycled . | . . . Retrieved Matter . | . . . Parts Self-Destructed . | . . . Prevented . | . . . Kills | -11 -10 -9 ------- Run | Yrd Mat Mat Combat Hostiles Destroyed 1 | . . 1 Classes Destroyed 2 | . . 2 Hauler 2 | . . 2 Sentry 1 | . . 1 Best Kill Streak 1 | . . 1 Combat Bots Only 1 | . . 1 Max Kills in Single Turn 1 | . . 1 Gunslinging . | . . . Exploded . | . . . Melee . | . . . Uniques/NPCs Destroyed . | . . . Combat | -11 -10 -9 -------- Run | Yrd Mat Mat Hostile Shots Fired 56 | . . 56 Missed 22 | . . 22 Hits 34 | . . 34 Projectile 34 | . . 34 Critical Strikes 1 | . . 1 Damage Taken 518 | . . 518 Core 414 | . . 414 Absorbed by Shields . | . . . Core Remaining (%) 100 | 100 100 . Volleys Fired . | . . . Largest . | . . . Hottest . | . . . Shots Fired . | . . . Gun . | . . . Cannon . | . . . Launcher . | . . . Special . | . . . Kinetic . | . . . Thermal . | . . . Explosive . | . . . Electromagnetic . | . . . Robot Hit Streak . | . . . Robot Miss Streak . | . . . Penetration Max . | . . . Secondary Targets . | . . . Shots Hit Robots 6 | . . 6 Core Hits 1 | . . 1 Critical Kills 1 | . . 1 Critical Parts Destroyed 1 | . . 1 Critical Strikes 2 | . . 2 Smash 2 | . . 2 Melee Attacks 14 | . . 14 Impact 14 | . . 14 Slashing . | . . . Piercing . | . . . Sneak Attacks 3 | . . 3 Combat Hostiles . | . . . Follow-up Attacks . | . . . Damage Inflicted 247 | . 1 246 Guns . | . . . Cannons . | . . . Explosions . | . . . Melee 218 | . . 218 Ramming 29 | . 1 28 Kinetic . | . . . Thermal . | . . . Explosive . | . . . Electromagnetic . | . . . Impact 218 | . . 218 Slashing . | . . . Piercing . | . . . Highest Corruption . | . . . Average Corruption . | . . . Corruption Purged . | . . . Corruption Blocked . | . . . Overload Shots . | . . . Overflow Damage 56 | . . 56 Projectiles . | . . . Explosions . | . . . Melee 56 | . . 56 Knockbacks . | . . . Impact . | . . . Kinetic . | . . . Secondary . | . . . Self-Inflicted Damage 13 | . . 13 Shots . | . . . Rammed 9 | . 2 7 Targets Rammed 9 | . 2 7 Kicked . | . . . Crushed . | . . . Highest Temperature . | . . . Average Temperature . | . . . Received Heat Transfer 204 | . . 204 Siege Activations . | . . . Martial Activations . | . . . Shielding Activations . | . . . Robots Disrupted . | . . . Combat Hostiles . | . . . Robots Corrupted 2 | . . 2 Combat Hostiles 1 | . . 1 Parts Fried 2 | . . 2 Impact Corruptions 4 | . . 4 Robots Melted . | . . . Combat Hostiles . | . . . Parts Melted . | . . . Heat Transferred . | . . . Parts Sabotaged . | . . . Parts Stolen . | . . . Parts Stripped . | . . . Power Chain Reactions . | . . . Alert | -11 -10 -9 ------- Run | Yrd Mat Mat Maximum Alert Level . | . . . Low Security (%) 100 | 100 100 100 Level 1 . | . . . Level 2 . | . . . Level 3 . | . . . Level 4 . | . . . Level 5 . | . . . High Security . | . . . Max Security . | . . . Peak Influence 110 | . . 110 Initial . | . . . Average 30 | . . 36 Influence Increases 196 | . . 196 Destroy 0b10 Robot/C 20 | . . 20 Destroy 0b10 Robot/NC 10 | . . 10 Destroy Leader 14 | . . 14 Disable Machine 30 | . . 30 Destroy Structure 2 | . . 2 Lose Combat Pursuer 120 | . . 120 Influence Decreases 86 | . . 86 Time Decay 76 | . . 76 Lost Part 10 | . . 10 Squads Dispatched 2 | . . 2 Investigation . | . . . Extermination . | . . . Reinforcement 2 | . . 2 Assault . | . . . Garrison . | . . . Intercept . | . . . Searches Triggered . | . . . Construction Impeded . | . . . Haulers Reinforced . | . . . Active Scanning Responses . | . . . Cargo Convoy Interrupts . | . . . Stealth | -11 -10 -9 --------- Run | Yrd Mat Mat Distress Signals 1 | . . 1 Communications Jammed . | . . . Distress Signals . | . . . Times Spotted 18 | . 1 17 Peak Tracking Total 6 | . 2 6 Tactical Retreats 4 | . . 4 Traps | -11 -10 -9 ------- Run | Yrd Mat Mat Traps Triggered . | . . . Indirectly . | . . . Trap Hack Attempts . | . . . Triggered . | . . . Disarmed . | . . . Reprogrammed . | . . . Reused . | . . . Traps Extracted . | . . . Installed . | . . . Triggered . | . . . Machines | -11 -10 -9 ---------- Run | Yrd Mat Mat Machines Disabled 2 | . . 2 Max in Single Turn 1 | . . 1 Machines Repaired . | . . . Machines Dismantled . | . . . Machines Sabotaged . | . . . Overloaded Fab Kills . | . . . Hacking | -11 -10 -9 --------- Run | Yrd Mat Mat Machines Accessed 1 | . . 1 Terminals 1 | . . 1 Fabricators . | . . . Repair Stations . | . . . Recycling Units . | . . . Scanalyzers . | . . . Garrison Access . | . . . Total Hacks 2 | . . 2 Successful 1 | . . 1 Failed 1 | . . 1 Catastrophic 1 | . . 1 Database Lockouts . | . . . Manual 2 | . . 2 Terminals 2 | . . 2 Fabricators . | . . . Repair Stations . | . . . Recycling Units . | . . . Scanalyzers . | . . . Garrison Access . | . . . Terminal Hacks . | . . . Fabricator Hacks . | . . . Repair Station Hacks . | . . . Recycling Unit Hacks . | . . . Scanalyzer . | . . . Garrison Access Hacks . | . . . Unauthorized Hacks 1 | . . 1 Terminals 1 | . . 1 Botnet 1 | . . 1 Fabricators . | . . . Repair Stations . | . . . Recycling Units . | . . . Scanalyzers . | . . . Garrison Access . | . . . Data Cores Recovered . | . . . Used . | . . . Hacking Detections 1 | . . 1 Full Trace Events . | . . . Feedback Events . | . . . Feedback Blocked . | . . . Robot Schematics Acquired . | . . . Robots Built . | . . . Authchips . | . . . Time . | . . . Total Robot Build Rating . | . . . Part Schematics Acquired . | . . . Parts Built . | . . . Authchips . | . . . Time . | . . . Total Part Build Rating . | . . . Parts Repaired . | . . . Time . | . . . Parts Recycled . | . . . Recycled Matter . | . . . Retrieved Matter . | . . . Retrieved Components . | . . . Parts Scanalyzed . | . . . Part Schematics Acquired . | . . . Parts Damaged . | . . . Bothacking | -11 -10 -9 ------------ Run | Yrd Mat Mat Used RIF Installer . | . . . Robots Hacked . | . . . Non-combat . | . . . Combat . | . . . Robot Hacks Applied . | . . . Relay Couplers Released . | . . . Fabnet Peak Effective % . | . . . Robots Rewired . | . . . Allies Hacked . | . . . Hacks Repelled . | . . . Allies | -11 -10 -9 -------- Run | Yrd Mat Mat Total Allies . | . . . Largest Group . | . . . Highest-Rated Group . | . . . Highest-Rated Ally . | . . . Total Orders . | . . . Ally Attacks . | . . . Total Damage . | . . . Kills . | . . . Allies Corrupted . | . . . Allies Melted . | . . . Intel | -11 -10 -9 ------- Run | Yrd Mat Mat Active Infowar (turns) 104 | . 21 83 Structural 104 | . 21 83 ECM 1 | . 1 . Robot Analysis Total . | . . . Derelict Logs Recovered . | . . . Drone Launches . | . . . Drone Recoveries . | . . . Exploration | -11 -10 -9 ------------- Run | Yrd Mat Mat Turns Passed 239 | 11 33 195 Spaces Moved 355 | 18 55 282 Core 355 | 18 55 282 Treads . | . . . Legs . | . . . Wheels . | . . . Hover . | . . . Flight . | . . . Fastest Speed 50 | 50 50 50 Average Speed 50 | 50 50 50 Slowest Speed 50 | 50 50 50 Overloaded Moves . | . . . Propulsion Burnouts . | . . . Robots Hopped . | . . . Potential Cave-ins . | . . . Cave-ins Triggered . | . . . Exploration Rate (%) 22 | 4 22 40 Regions Visited 2 Branch Regions . Pre-discovered Areas . | . . . Known Exits Taken . | . . . Unknown Exits Taken 2 | 1 1 . Scrap Searched . | . . . Spaces Dug 2 | . . 2 Terrain Destroyed 2 | . . 2 Melee 2 | . . 2 Projectile . | . . . AOE . | . . . Terrain Rammed . | . . . Walls Destroyed . | . . . Machines Disabled . | . . . Actions | -11 -10 -9 --------- Run | Yrd Mat Mat Total 388 | 18 59 311 Wait . | . . . Move 353 | 17 54 282 Hop . | . . . Pick Up 1 | . . 1 Fast Attach 6 | 1 2 3 Attach 2 | . . 2 Detach 3 | . 1 2 Swap . | . . . Drop . | . . . Fire . | . . . Melee 14 | . . 14 Ram 9 | . 2 7 Kick . | . . . Crush . | . . . Escape Stasis . | . . . Rewire . | . . . Trap . | . . . Miscellaneous . | . . . Route ------- -11/Scrapyard -10/Materials -9/Materials (discovered 1 exit: [*Min]) History --------- Turn | Location | Event 5 | -11/Scrapyard | Discovered new exit (range 14) 12 | -11/Scrapyard | Entered Materials 43 | -10/Materials | Discovered new exit (range 5) 45 | -10/Materials | Entered another Materials area 45 | -9/Materials | Evolved 2 slots: Propulsion x1, Utility x1 93 | -9/Materials | Core integrity fell below 50% 114 | -9/Materials | Discovered new exit (range 8) 192 | -9/Materials | Core integrity fell below 20% 240 | -9/Materials | Destroyed by G-47 Trooper with Particle Gun Last Messages --------------- 00187_ Beam Rifle fried. 00187_ Imp. Ion Engine fried. 00188_ Acquired 53 matter. 00190_ Slammed into G-34 Mercenary. 00190_ Destabilizing: Core damaged (-16). 00192_ Slammed into G-34 Mercenary. 00194_ K-01 Serf collects debris. 00207_ Slammed into U-05 Engineer. 00207_ Destabilizing: Core damaged (-8). 00207_ O-16 Technician: "IFF HANDSHAKE FAILED. SECURING TERMINAL." 00209_ Slammed into K-01 Serf. 00219_ Sneak attack on A-02 Transporter. 00227_ Destroyed Weight Redist. System. 00227_ A-02 Transporter system corrupted by crushing effect. 00233_ ALERT: Hostiles spotted, dispatching reinforcements to Terminal M005. 00237_ Sneak attack on A-02 Transporter. 00237_ A-02 Transporter suffers critical hit (Smash). 00237_ A-02 Transporter destroyed. 00240_ Acquired 46 matter. Map ----- +----------------------------------------------------+ | ?# ?????????????????? | | ?####/######"####+##### #??????????????????????? | | ??# !### ## #??????????????????????? | | ??# """ #?# """ ## #??????????????????????? | | ??# """"" #?# """ ## #??????????????????????? | | ??# """"" #?# """ ## #??????????????????????? | | ??# """"" #?# / +??????????????????????? | | ??# """ #?# """ ## #??????????????????????? | | ??# #?# """ #### #??????????????????????? | | ??# ? #?# """ #??# #??????????????????????? | | ??#??########?# #??#g#??????????????????????? | | ??????????????# """ #??# #??????????????????????? | | ??????????????# """ #??#g#??????????????????????? | | ??????????????# "?" #??#g#??????????????????????? | | ??????????????????? ???#u#??????????????????????? | | ???????????????????##???#g#??????????????????????? | | ????????????????????????# #??????????????????????? | | ????????????????????????# #??????????????????????? | | ????????????????????????# #??????????????????????? | | ????????????????????????# #??????????????????????? | | ????????????????????????# #??????????????????????? | | ????????????????????????#=#??????????????????????? | | ????????????????????????#!#??????????????????????? | | ????????????????????????#!#??????????????????????? | | ????????????????????????#!#??????????????????????? | | ????????????????????????#@#??????????????????????? | | ????????????????????????#!#??????????????????????? | | ????????????????????????#!#??????????????????????? | | ????????????????????????#m#??????????????????????? | | ????????????????????????#a#??????????????????????? | | ????????????????????????#!#??????????????????????? | | ????????????????????????# #??????????????????????? | | ????????????????????????# #??????????????????????? | | ????????????????????????#+#??????????????????????? | | ????????????????????????? ???????????????????????? | | ????????????????????????? ???????????????????????? | | ????????????????????????? ???????????????????????? | | ????????????????????????? ???????????????????????? | | ????????????????????????? ???????????????????????? | | ?????????????????????????????????????????????????? | | ?????????????????????????????????????????????????? | | ?????????????????????????????????????????????????? | | ?????????????????????????????????????????????????? | | ?????????????????????????????????????????????????? | | ?????????????????????????????????????????????????? | | ?????????????????????????????????????????????????? | | ?????????????????????????????????????????????????? | | ?????????????????????????????????????????????????? | | ?????????????????????????????????????????????????? | | ?????????????????????????????????????????????????? | +----------------------------------------------------+ Best States ------------- Heat Dissipation 28 Energy Generation 5 Energy Capacity 100 Matter Stores 241 Matter Capacity 300 Sight Range 16 Terrain Scan Density 10 Evasion (%) 50 Item Schematics ----------------- None Robot Schematics ------------------ None Fabricated ------------ Nothing Repaired ---------- Nothing Alien Tech Used ----------------- None Achievements -------------- None Challenges ------------ None Game ------ Seed MomentumCannonFocus Manual? 0 Play Time 00:04:47 Cumulative 246.9 hours Start 2025.06.13 @ 16:44:20 End 2025.06.13 @ 16:51:47 Sessions 1 Manual Loads 0 Difficulty Rogue Special Mode None Game No. 181 Rogue 181 Adventurer 0 Explorer 0 Win Type - Total 14 Types 14/0/0/0/0/0/0/0/0/0 Lore% 72 Gallery% 70 Achievement% 64 Wizard Run 0 Options --------- Layout 0 ASCII 0 Keyboard 1 Movement Numpad Keybinds 0 Fullscreen 2 Font 36/Smallcaps Map View 76x50 Zoom Use 0% Tactical HUD 1 Map Filters NONE Filters NONE Steam 1 RUN: 5d05e207-d583-4e35-821f-e30c268566a5